fUSD/lending_fUSD_20251201
["ID","MTS","AMOUNT","RATE_DAILY","PERIOD"]
[395265176,1764574415035,-500.0,0.00016999,2]
[395265177,1764574415045,-559.73089187,0.00016999,2]
[395265178,1764574415055,-500.0,0.00016999,2]
[395265179,1764574415063,-500.0,0.00016999,2]
[395265180,1764574415072,-500.0,0.00016999,2]
[395265181,1764574415082,-500.0,0.00016999,2]
[395265182,1764574415091,-500.0,0.00016999,2]
[395265183,1764574415101,-508.34597355,0.00016999,2]
[395265184,1764574415110,-307.29501972,0.00016999,2]
[395265185,1764574415119,-500.0,0.00016999,2]
[395265186,1764574415129,-500.0,0.00016999,2]
[395265187,1764574415139,-500.0,0.00016999,2]
[395265188,1764574415148,-500.0,0.00016999,2]
[395265189,1764574415157,-500.0,0.00016999,2]
[395265190,1764574415167,-500.0,0.00016999,2]
[395265191,1764574415176,-500.0,0.00016999,2]
[395265192,1764574415186,-500.0,0.00016999,2]
[395265193,1764574415195,-500.0,0.00016999,2]
[395265194,1764574415205,-500.0,0.00016999,2]
[395265195,1764574415215,-400.14865854,0.00016999,2]
[395265196,1764574415225,-500.0,0.00016999,2]
[395265197,1764574415234,-500.0,0.00016999,2]
[395265198,1764574415244,-500.0,0.00016999,2]
[395265199,1764574415253,-500.0,0.00016999,2]
[395265200,1764574415263,-500.0,0.00016999,2]
[395265201,1764574415272,-500.0,0.00016999,2]
[395265202,1764574415281,-500.0,0.00016999,2]
[395265203,1764574415290,-500.0,0.00016999,2]
[395265204,1764574415299,-370.20508458,0.00016999,2]
[395265205,1764574415308,-500.0,0.00016999,2]
[395265206,1764574415317,-500.0,0.00016999,2]
[395265207,1764574415326,-193.24031381,0.00016999,2]
[395265208,1764574415335,-300.0,0.00016999,2]
[395265209,1764574415344,-4632900.49640985,0.00017,2]
[395265210,1764574415353,-4202.51708166,0.00017,15]
[395265211,1764574415363,-250.0,0.00017,2]
[395265212,1764574415372,-250.0,0.00017,2]
[395265213,1764574415382,-250.0,0.00017,2]
[395265214,1764574415391,-250.0,0.00017,2]
[395265215,1764574415400,-250.0,0.00017,2]
[395265216,1764574415408,-250.0,0.00017,2]
[395265217,1764574415417,-250.0,0.00017,2]
[395265218,1764574415426,-250.0,0.00017,2]
[395265219,1764574415445,-250.0,0.00017,2]
[395265220,1764574415456,-250.0,0.00017,2]
[395265221,1764574415466,-250.0,0.00017,2]
[395265222,1764574415476,-250.0,0.00017,2]
[395265223,1764574415485,-250.0,0.00017,2]
[395265224,1764574415495,-250.0,0.00017,2]
[395265225,1764574415506,-250.0,0.00017,2]
[395265226,1764574415516,-250.0,0.00017,2]
[395265227,1764574415526,-250.0,0.00017,2]
[395265228,1764574415537,-250.0,0.00017,2]
[395265229,1764574415546,-203.9,0.00017,2]
[395265230,1764574415555,-150.0,0.00017,2]
[395265231,1764574415565,-1029.45513101,0.00017,2]
[395265232,1764574415575,-1000.0,0.00017,2]
[395265233,1764574415584,-1000.0,0.00017,2]
[395265234,1764574415593,-1000.0,0.00017,2]
[395265235,1764574415603,-1000.0,0.00017,2]
[395265236,1764574415613,-1000.0,0.00017,2]
[395265237,1764574415623,-1000.0,0.00017,2]
[395265238,1764574415632,-1000.0,0.00017,2]
[395265239,1764574415642,-1000.0,0.00017,2]
[395265240,1764574415651,-1000.0,0.00017,2]
[395265241,1764574415661,-1000.0,0.00017,2]
[395265242,1764574415671,-1000.0,0.00017,2]
[395265243,1764574415682,-1000.0,0.00017,2]
[395265244,1764574415692,-1000.0,0.00017,2]
[395265245,1764574415702,-1000.0,0.00017,2]
[395265246,1764574415711,-1000.0,0.00017,2]
[395265247,1764574415721,-1000.0,0.00017,2]
[395265248,1764574415731,-1000.0,0.00017,2]
[395265249,1764574415740,-1000.0,0.00017,2]
[395265250,1764574415750,-1000.0,0.00017,2]
[395265251,1764574415760,-1000.0,0.00017,2]
[395265252,1764574415770,-1000.0,0.00017,2]
[395265253,1764574415782,-1000.0,0.00017,2]
[395265254,1764574415791,-1000.0,0.00017,2]
[395265255,1764574415807,-1000.0,0.00017,2]
[395265256,1764574415816,-1000.0,0.00017,2]
[395265257,1764574415827,-1000.0,0.00017,2]
[395265258,1764574415837,-1000.0,0.00017,2]
[395265259,1764574415848,-1000.0,0.00017,2]
[395265260,1764574415858,-1008.27314937,0.00017,2]
[395265261,1764574415869,-489.7749453,0.00017,2]
[395265262,1764574415879,-174.95452999,0.00017,2]
[395265263,1764574415889,-152.0,0.00017,2]
[395265264,1764574415900,-152.0,0.00017,2]
[395265265,1764574415911,-152.0,0.00017,2]
[395265266,1764574415921,-152.0,0.00017,2]
[395265267,1764574415931,-200.0,0.00017,2]
[395265268,1764574415942,-1250.0,0.00017,2]
[395265269,1764574415952,-151.0,0.00017,2]
[395265270,1764574415962,-151.0,0.00017,2]
[395265271,1764574415976,-151.0,0.00017,2]
[395265272,1764574415987,-656.0,0.00017,2]
[395265273,1764574415997,-1258.0,0.00017,2]
[395265274,1764574416007,-2000.0,0.00017,2]
[395265275,1764574416018,-152.0,0.00017,2]
[395265276,1764574416028,-1250.0,0.00017,2]
[395265277,1764574416038,-151.0,0.00017,2]
[395265278,1764574416049,-1250.0,0.00017,2]
[395265279,1764574416059,-1250.0,0.00017,2]
[395265280,1764574416069,-1250.0,0.00017,2]
[395265281,1764574416079,-1250.0,0.00017,2]
[395265282,1764574416089,-1250.0,0.00017,2]
[395265283,1764574416098,-1250.0,0.00017,2]
[395265284,1764574416108,-250.0,0.00017,2]
[395265285,1764574416118,-1250.0,0.00017,2]
[395265286,1764574416128,-68994.95485219,0.00017,2]
[395265287,1764574416138,-1780719.22397745,0.00017,2]
[395265288,1764574417714,-1516.49999999,0.00017,2]
[395265289,1764574417737,-29631.00262072,0.00017,2]
[395265290,1764574417752,-12368.99737928,0.00017,2]
[395265291,1764574418021,-279.05391818,0.000149,2]
[395265292,1764574418035,-279.05391816,0.00015125,2]
[395265293,1764574418054,-163.25908099,0.0001585,2]
[395265294,1764574418069,-25.03435102,0.00017,2]
[395265295,1764574418086,-409.55999997,0.00017,2]
[395265296,1764574418105,-433.13114966,0.00017,2]
[395265297,1764574418122,-2286.909625,0.00017,2]
[395265298,1764574418140,-301.89100001,0.00017,2]
[395265299,1764574418299,5676.2,0.00011908,2]
[395265317,1764575181220,150.0,0.00022,30]
[395265341,1764575432146,-259.37800205,0.00012052,2]
[395265342,1764575432155,-251.37666393,0.00012052,2]
[395265343,1764575432166,-12.24533402,0.00012383,2]
[395265347,1764575432409,-487.75466598,0.00012383,2]
[395265348,1764575432423,-201.79754661,0.00012383,2]
[395265349,1764575432442,-300.0,0.00012383,2]
[395265350,1764575432461,-1200.0,0.00012383,2]
[395265351,1764575432483,-82928.22,0.00012384,2]
[395265352,1764575432504,-150.0,0.00012578,2]
[395265353,1764575432525,-246.86,0.00012622,2]
[395265354,1764575432546,-288.0057792,0.00012666,2]
[395265355,1764575432568,-1200.0,0.00012765,2]
[395265356,1764575432585,-150.0,0.00012766,2]
[395265357,1764575432597,-806.77,0.00012767,2]
[395265358,1764575432607,-18634.35794892,0.00012768,2]
[395265359,1764575432621,-2414.33205108,0.00012768,2]
[395265360,1764575432630,-275.45,0.00012786,2]
[395265361,1764575432639,-200.0,0.00012801,2]
[395265362,1764575432648,-200.0,0.00012801,2]
[395265363,1764575432658,-500.0,0.00012801,2]
[395265364,1764575432667,-500.0,0.00012801,2]
[395265365,1764575432676,-500.0,0.00012801,2]
[395265366,1764575432686,-500.0,0.00012801,2]
[395265367,1764575432695,-200.0,0.00012801,2]
[395265368,1764575432704,-500.0,0.00012801,2]
[395265369,1764575432713,-500.0,0.00012801,2]
[395265370,1764575432722,-500.0,0.00012801,2]
[395265371,1764575432732,-500.0,0.00012801,2]
[395265372,1764575432740,-500.0,0.00012801,2]
[395265373,1764575432751,-500.0,0.00012801,2]
[395265374,1764575432760,-500.0,0.00012801,2]
[395265375,1764575432769,-500.0,0.00012801,2]
[395265376,1764575432778,-500.0,0.00012801,2]
[395265377,1764575432788,-500.0,0.00012801,2]
[395265378,1764575432797,-151.0,0.00012801,2]
[395265379,1764575432806,-151.0,0.00012801,2]
[395265380,1764575432815,-151.0,0.00012801,2]
[395265381,1764575432824,-151.0,0.00012801,2]
[395265382,1764575432834,-151.0,0.00012801,2]
[395265383,1764575432844,-214.10185546,0.00012801,2]
[395265384,1764575432853,-151.0,0.00012801,2]
[395265385,1764575432862,-500.0,0.00012801,2]
[395265386,1764575432872,-151.0,0.00012801,2]
[395265387,1764575432881,-500.0,0.00012801,2]
[395265388,1764575432891,-151.0,0.00012801,2]
[395265389,1764575432900,-500.0,0.00012801,2]
[395265390,1764575432910,-151.0,0.00012801,2]
[395265391,1764575432919,-500.0,0.00012801,2]
[395265392,1764575432928,-151.0,0.00012801,2]
[395265393,1764575432938,-500.0,0.00012801,2]
[395265394,1764575432948,-151.0,0.00012801,2]
[395265395,1764575432958,-500.0,0.00012801,2]
[395265396,1764575432967,-151.0,0.00012801,2]
[395265397,1764575432977,-500.0,0.00012801,2]
[395265398,1764575432987,-151.0,0.00012801,2]
[395265399,1764575432997,-500.0,0.00012801,2]
[395265400,1764575433006,-151.0,0.00012801,2]
[395265401,1764575433016,-500.0,0.00012801,2]
[395265402,1764575433026,-151.0,0.00012801,2]
[395265403,1764575433035,-500.0,0.00012801,2]
[395265404,1764575433045,-151.0,0.00012801,2]
[395265405,1764575433055,-500.0,0.00012801,2]
[395265406,1764575433064,-151.0,0.00012801,2]
[395265407,1764575433073,-500.0,0.00012801,2]
[395265408,1764575433083,-151.0,0.00012801,2]
[395265409,1764575433093,-31.08918779,0.00012801,2]
[395265410,1764575433105,-468.91081221,0.00012801,2]
[395265411,1764575433114,-151.0,0.00012801,2]
[395265412,1764575433124,-500.0,0.00012801,2]
[395265413,1764575433133,-500.0,0.00012801,2]
[395265414,1764575433143,-1208.94,0.00012808,2]
[395265415,1764575433153,-150.99,0.00012808,2]
[395265416,1764575433163,-150.99,0.00012808,2]
[395265417,1764575433172,-16041.45713276,0.00012808,2]
[395265418,1764575433184,-1379.64286724,0.00012808,2]
[395265419,1764575433194,-1255.56736772,0.00012809,2]
[395265420,1764575433205,-271.90586894,0.00012809,2]
[395265421,1764575433272,-1736.55047373,0.00012809,2]
[395265435,1764575440126,-500.0,0.00012383,2]
[395265436,1764575440136,-500.0,0.00012383,2]
[395265437,1764575440145,-500.0,0.00012383,2]
[395265438,1764575440155,-500.0,0.00012383,2]
[395265439,1764575440164,-500.0,0.00012383,2]
[395265440,1764575440173,-500.0,0.00012383,2]
[395265441,1764575440182,-500.0,0.00012383,2]
[395265442,1764575440191,-500.0,0.00012383,2]
[395265443,1764575440200,-500.0,0.00012383,2]
[395265444,1764575440209,-500.0,0.00012383,2]
[395265445,1764575440219,-500.0,0.00012383,2]
[395265446,1764575440228,-500.0,0.00012383,2]
[395265447,1764575440238,-500.0,0.00012383,2]
[395265448,1764575440248,-641.15287983,0.00012383,2]
[395265449,1764575440257,-500.0,0.00012383,2]
[395265450,1764575440266,-500.0,0.00012383,2]
[395265451,1764575440275,-500.0,0.00012383,2]
[395265452,1764575440284,-500.0,0.00012383,2]
[395265453,1764575440292,-500.0,0.00012383,2]
[395265454,1764575440302,-500.0,0.00012383,2]
[395265455,1764575440314,-500.0,0.00012383,2]
[395265456,1764575440325,-809.1724359,0.00012805,2]
[395265457,1764575440335,-10553.92628961,0.00012809,2]
[395265458,1764575440343,-9784.30937009,0.00012809,2]
[395265459,1764575440357,-215.68062991,0.00012809,2]
[395265460,1764575440366,-1010.9368087,0.00012809,2]
[395265461,1764575440376,-7381.5531913,0.00012809,2]
[395265462,1764575440387,-3612.92613495,0.00012838,2]
[395265463,1764575440396,-500.54491055,0.00012873,2]
[395265464,1764575440405,-237.32118483,0.00012873,2]
[395265465,1764575440414,-500.0,0.00012873,2]
[395265466,1764575440424,-500.0,0.00012873,2]
[395265467,1764575440433,-500.0,0.00012873,2]
[395265468,1764575440444,-533.62010265,0.00012873,2]
[395265470,1764575440454,-500.0,0.00012873,2]
[395265471,1764575440463,-806.77,0.00013041,2]
[395265472,1764575440473,-1557.0,0.00013144,2]
[395265473,1764575440483,-189.0,0.00013144,2]
[395265474,1764575440491,-264.0,0.00013165,2]
[395265475,1764575440502,-1611.0,0.00013186,2]
[395265476,1764575440512,-1947.0,0.00013213,2]
[395265477,1764575440521,-250.0,0.00013218,2]
[395265478,1764575440530,-1125.0,0.00013239,2]
[395265479,1764575440539,-250.0,0.00013257,2]
[395265480,1764575440548,-806.77,0.00013315,2]
[395265481,1764575440557,-246.86,0.00013323,2]
[395265482,1764575440566,-200.0,0.00013349,2]
[395265483,1764575440575,-501.00569167,0.00013421,2]
[395265484,1764575440584,-1000.0,0.00013421,2]
[395265485,1764575440592,-200.0,0.00013498,2]
[395265486,1764575440601,-999.0,0.00013522,3]
[395265487,1764575440610,-420.0,0.00013588,2]
[395265488,1764575440620,-806.77,0.00013589,2]
[395265489,1764575440629,-1680.0,0.00013621,2]
[395265490,1764575440638,-250.0,0.00013627,2]
[395265491,1764575440648,-214.47127456,0.00013632,2]
[395265492,1764575440657,-2500.0,0.00013632,2]
[395265493,1764575440665,-500.0,0.00013698,2]
[395265494,1764575440675,-500.0,0.00013698,2]
[395265495,1764575440685,-500.0,0.00013698,2]
[395265496,1764575440695,-500.0,0.00013698,2]
[395265497,1764575440705,-500.0,0.00013698,2]
[395265498,1764575440714,-532.1,0.00013698,2]
[395265499,1764575440723,-532.1,0.00013698,2]
[395265500,1764575440732,-1000.0,0.00013699,2]
[395265501,1764575440741,-200.0,0.00013699,2]
[395265502,1764575440750,-500.0,0.00013731,2]
[395265503,1764575440760,-229.27249885,0.00013731,2]
[395265504,1764575440769,-500.0,0.00013731,2]
[395265505,1764575440779,-500.0,0.00013731,2]
[395265506,1764575440788,-500.0,0.00013731,2]
[395265507,1764575440797,-500.0,0.00013731,2]
[395265508,1764575440806,-568.76021857,0.00013731,2]
[395265509,1764575440816,-500.0,0.00013731,2]
[395265510,1764575440825,-500.0,0.00013731,2]
[395265511,1764575440834,-500.0,0.00013731,2]
[395265512,1764575440843,-500.0,0.00013731,2]
[395265513,1764575440851,-500.0,0.00013731,2]
[395265514,1764575440861,-500.0,0.00013731,2]
[395265515,1764575440870,-500.0,0.00013731,2]
[395265516,1764575440880,-500.0,0.00013731,2]
[395265517,1764575440889,-500.0,0.00013731,2]
[395265518,1764575440898,-702.79,0.00013731,2]
[395265519,1764575440907,-702.79,0.00013731,2]
[395265520,1764575440917,-702.79,0.00013731,2]
[395265521,1764575440926,-500.0,0.00013731,2]
[395265522,1764575440935,-500.0,0.00013731,2]
[395265523,1764575440945,-500.0,0.00013731,2]
[395265524,1764575440954,-760000.0,0.00013732,2]
[395265525,1764575440963,-600.0,0.00013732,2]
[395265526,1764575440972,-15718.8954656,0.00013739,2]
[395265527,1764575440982,-9253.06722095,0.00013839,2]
[395265528,1764575440991,-806.77,0.00013863,2]
[395265529,1764575441000,-255.0,0.00013864,2]
[395265530,1764575441009,-1500.0,0.00013968,2]
[395265531,1764575441018,-1500.0,0.00014,2]
[395265532,1764575441028,-606.0,0.00014002,2]
[395265533,1764575441037,-246.86,0.00014024,2]
[395265534,1764575441053,-540.71757328,0.00014132,2]
[395265535,1764575441069,-806.8,0.00014137,2]
[395265536,1764575441078,-600.0,0.0001428,2]
[395265537,1764575441087,-737.58597546,0.00014459,2]
[395265538,1764575441096,-2000.0,0.00014516,2]
[395265539,1764575441105,-151.0,0.00014521,2]
[395265540,1764575441114,-246.86,0.00014725,2]
[395265541,1764575441123,-600.0,0.00014828,2]
[395265542,1764575441133,-214.47127454,0.00014841,2]
[395265543,1764575441142,-587.0,0.00014911,2]
[395265544,1764575441151,-2351.0,0.00014983,2]
[395265545,1764575441160,-500.0,0.00014999,2]
[395265546,1764575441169,-193.24031381,0.00014999,2]
[395265547,1764575441178,-532.1,0.00014999,2]
[395265548,1764575441188,-809.1724359,0.00015005,2]
[395265549,1764575441197,-250.0,0.00015029,2]
[395265550,1764575441206,-433.0,0.00015051,2]
[395265551,1764575441215,-1000.0,0.00015064,2]
[395265552,1764575441225,-322.63,0.00015068,2]
[395265553,1764575441234,-151.0,0.00015069,2]
[395265554,1764575441243,-500.0,0.00015309,2]
[395265555,1764575441252,-532.1,0.00015309,2]
[395265556,1764575441261,-600.0,0.00015376,2]
[395265557,1764575441270,-246.86,0.00015426,2]
[395265558,1764575441280,-500.0,0.00015449,2]
[395265559,1764575441289,-500.0,0.00015449,2]
[395265560,1764575441298,-500.0,0.00015449,2]
[395265561,1764575441308,-370.20508458,0.00015449,2]
[395265562,1764575441319,-532.1,0.00015449,2]
[395265563,1764575441328,-532.1,0.00015449,2]
[395265564,1764575441337,-532.1,0.00015449,2]
[395265565,1764575441347,-532.1,0.00015449,2]
[395265566,1764575441358,-207.4,0.0001554,2]
[395265567,1764575441366,-151.0,0.00015617,2]
[395265568,1764575441376,-500.0,0.00015849,2]
[395265569,1764575441387,-500.0,0.00015849,2]
[395265570,1764575441396,-500.0,0.00015849,2]
[395265571,1764575441405,-500.0,0.00015849,2]
[395265572,1764575441414,-523.35292461,0.00015849,2]
[395265573,1764575441423,-160.03289921,0.0001585,2]
[395265574,1764575441432,-500.0,0.0001585,2]
[395265575,1764575441441,-308.25309898,0.0001585,2]
[395265576,1764575441450,-500.0,0.0001585,2]
[395265577,1764575441459,-160.09669624,0.0001585,2]
[395265578,1764575441468,-500.0,0.0001585,2]
[395265579,1764575441477,-500.0,0.0001585,2]
[395265580,1764575441486,-506.27683139,0.0001585,2]
[395265581,1764575441495,-160.09973475,0.0001585,2]
[395265582,1764575441504,-548.17129532,0.0001585,2]
[395265583,1764575441513,-500.0,0.0001585,2]
[395265584,1764575441523,-500.0,0.0001585,2]
[395265585,1764575441531,-500.0,0.0001585,2]
[395265586,1764575441540,-500.0,0.0001585,2]
[395265587,1764575441549,-500.0,0.0001585,2]
[395265588,1764575441558,-500.0,0.0001585,2]
[395265589,1764575441569,-160.09479154,0.0001585,2]
[395265590,1764575441577,-500.0,0.0001585,2]
[395265591,1764575441586,-156.08046811,0.0001585,2]
[395265592,1764575441595,-500.24999643,0.0001585,2]
[395265593,1764575441604,-500.0,0.0001585,2]
[395265594,1764575441613,-587.21395506,0.0001585,2]
[395265595,1764575441623,-500.0,0.0001585,2]
[395265596,1764575441632,-500.0,0.0001585,2]
[395265597,1764575441641,-281.76890158,0.0001585,2]
[395265598,1764575441649,-501.32291125,0.0001585,2]
[395265599,1764575441658,-500.0,0.0001585,2]
[395265600,1764575441667,-692.31659652,0.000159,2]
[395265601,1764575441676,-692.31659649,0.000159,2]
[395265602,1764575441686,-692.31659649,0.000159,2]
[395265603,1764575441695,-173.83022775,0.00015907,2]
[395265604,1764575441704,-600.0,0.00015924,2]
[395265605,1764575441713,-532.1,0.00015999,2]
[395265606,1764575441723,-532.1,0.00015999,2]
[395265607,1764575441731,-532.1,0.00015999,2]
[395265608,1764575441740,-532.1,0.00015999,2]
[395265609,1764575441749,-532.1,0.00015999,2]
[395265610,1764575441758,-532.1,0.00015999,2]
[395265611,1764575441767,-532.1,0.00015999,2]
[395265612,1764575441776,-532.1,0.00015999,2]
[395265613,1764575441784,-532.1,0.00015999,2]
[395265614,1764575441793,-532.1,0.00015999,2]
[395265615,1764575441802,-532.1,0.00015999,2]
[395265616,1764575441811,-532.1,0.00015999,2]
[395265617,1764575441820,-532.1,0.00015999,2]
[395265618,1764575441830,-532.1,0.00015999,2]
[395265619,1764575441839,-532.1,0.00015999,2]
[395265620,1764575441848,-532.31055565,0.00015999,2]
[395265621,1764575441857,-2000.0,0.00016,2]
[395265622,1764575441866,-1043.41010395,0.00016049,2]
[395265623,1764575441875,-214.47127454,0.00016049,2]
[395265624,1764575441884,-246.86,0.00016128,2]
[395265625,1764575441893,-1287.42138508,0.00016139,2]
[395265626,1764575441902,-500.0,0.00016148,2]
[395265627,1764575441911,-500.0,0.00016148,2]
[395265628,1764575441920,-500.0,0.00016148,2]
[395265629,1764575441930,-500.0,0.00016148,2]
[395265630,1764575441939,-500.0,0.00016148,2]
[395265631,1764575441947,-500.0,0.00016148,2]
[395265632,1764575441957,-500.0,0.00016148,2]
[395265633,1764575441966,-620.43832599,0.00016148,2]
[395265634,1764575441974,-702.79,0.00016148,2]
[395265635,1764575441983,-702.79,0.00016148,2]
[395265636,1764575441992,-300.0,0.00016149,2]
[395265637,1764575442003,-1500.0,0.00016149,2]
[395265638,1764575442012,-3300.0,0.00016149,2]
[395265639,1764575442021,-187.78006525,0.00016149,2]
[395265640,1764575442030,-2500.0,0.00016149,2]
[395265641,1764575442039,-1500.0,0.00016149,2]
[395265642,1764575442048,-514.84070869,0.00016149,2]
[395265643,1764575442057,-646.65982734,0.00016149,2]
[395265644,1764575442066,-2500.0,0.00016149,2]
[395265645,1764575442075,-1500.0,0.00016149,2]
[395265646,1764575442084,-2500.0,0.00016149,2]
[395265647,1764575442093,-1500.0,0.00016149,2]
[395265648,1764575442102,-2500.0,0.00016149,2]
[395265649,1764575442111,-1500.0,0.00016149,2]
[395265650,1764575442120,-2500.0,0.00016149,2]
[395265651,1764575442129,-151.0,0.00016149,2]
[395265652,1764575442138,-1500.0,0.00016149,2]
[395265653,1764575442146,-2500.0,0.00016149,2]
[395265654,1764575442155,-1500.0,0.00016149,2]
[395265655,1764575442164,-2500.0,0.00016149,2]
[395265656,1764575442173,-250.0,0.00016149,2]
[395265657,1764575442182,-1500.0,0.00016149,2]
[395265658,1764575442191,-250.0,0.00016149,2]
[395265659,1764575442200,-2500.0,0.00016149,2]
[395265660,1764575442209,-1500.0,0.00016149,2]
[395265661,1764575442217,-250.0,0.00016149,2]
[395265662,1764575442226,-2500.0,0.00016149,2]
[395265663,1764575442235,-1500.0,0.00016149,2]
[395265664,1764575442244,-250.0,0.00016149,2]
[395265665,1764575442254,-2500.0,0.00016149,2]
[395265666,1764575442263,-1500.0,0.00016149,2]
[395265667,1764575442272,-250.0,0.00016149,2]
[395265668,1764575442281,-2500.0,0.00016149,2]
[395265669,1764575442291,-559.7798745,0.00016149,2]
[395265670,1764575442300,-2500.0,0.00016149,2]
[395265671,1764575442311,-250.0,0.00016149,2]
[395265672,1764575442321,-10000.0,0.00016149,2]
[395265673,1764575442330,-2500.0,0.00016149,2]
[395265674,1764575442339,-354.84418245,0.00016149,2]
[395265675,1764575442350,-2500.0,0.00016149,2]
[395265676,1764575442359,-10000.0,0.00016149,2]
[395265677,1764575442368,-8000.0,0.00016149,2]
[395265678,1764575442377,-10000.0,0.00016149,2]
[395265679,1764575442386,-8000.0,0.00016149,2]
[395265680,1764575442395,-10000.0,0.00016149,2]
[395265681,1764575442404,-8000.0,0.00016149,2]
[395265682,1764575442413,-10000.0,0.00016149,2]
[395265683,1764575442422,-10000.0,0.00016149,2]
[395265684,1764575442703,-8000.0,0.00016149,2]
[395265685,1764575442714,-10000.0,0.00016149,2]
[395265686,1764575442723,-8000.0,0.00016149,2]
[395265687,1764575442732,-10000.0,0.00016149,2]
[395265688,1764575442741,-578.20924308,0.00016149,2]
[395265689,1764575442750,-8000.0,0.00016149,2]
[395265690,1764575442759,-10000.0,0.00016149,2]
[395265691,1764575442768,-8000.0,0.00016149,2]
[395265693,1764575442778,-10000.0,0.00016149,2]
[395265694,1764575442787,-8000.0,0.00016149,2]
[395265695,1764575442797,-1000.0,0.00016149,2]
[395265696,1764575442807,-10000.0,0.00016149,2]
[395265697,1764575442817,-1000.0,0.00016149,2]
[395265698,1764575442826,-8000.0,0.00016149,2]
[395265699,1764575442835,-10000.0,0.00016149,2]
[395265700,1764575442844,-1000.0,0.00016149,2]
[395265702,1764575442853,-6485.44053371,0.00016149,2]
[395265703,1764575442864,-1000.0,0.00016149,2]
[395265704,1764575442875,-8000.0,0.00016149,2]
[395265705,1764575442886,-10000.0,0.00016149,2]
[395265706,1764575442896,-160.0,0.00016149,2]
[395265707,1764575442905,-1000.0,0.00016149,2]
[395265708,1764575442914,-1000.0,0.00016149,2]
[395265709,1764575442924,-8000.0,0.00016149,2]
[395265710,1764575442933,-10000.0,0.00016149,2]
[395265711,1764575442942,-1000.0,0.00016149,2]
[395265712,1764575442951,-1000.0,0.00016149,2]
[395265713,1764575442960,-8000.0,0.00016149,2]
[395265714,1764575442970,-1000.0,0.00016149,2]
[395265715,1764575442979,-1000.0,0.00016149,2]
[395265716,1764575442987,-2148.05773878,0.00016149,2]
[395265717,1764575442996,-1000.0,0.00016149,2]
[395265718,1764575443005,-1000.0,0.00016149,2]
[395265719,1764575443014,-1000.0,0.00016149,2]
[395265720,1764575443024,-762.94247186,0.00016149,2]
[395265721,1764575443033,-1000.0,0.00016149,2]
[395265722,1764575443042,-1000.0,0.00016149,2]
[395265723,1764575443052,-1000.0,0.00016149,2]
[395265724,1764575443060,-1000.0,0.00016149,2]
[395265725,1764575443069,-1000.0,0.00016149,2]
[395265726,1764575443079,-620.0,0.00016149,2]
[395265727,1764575443088,-1000.0,0.00016149,2]
[395265728,1764575443098,-1000.0,0.00016149,2]
[395265729,1764575443107,-1000.0,0.00016149,2]
[395265731,1764575443117,-1000.0,0.00016149,2]
[395265733,1764575443127,-1000.0,0.00016149,2]
[395265735,1764575443135,-1000.0,0.00016149,2]
[395265737,1764575443145,-1000.0,0.00016149,2]
[395265738,1764575443155,-1000.0,0.00016149,2]